[Event "1st Serbian League 2022"]
[Site "Vrnjacka Banja"]
[Date "2022.09.28"]
[Round "9.12"]
[White "Rajkovic, Mladen"]
[Black "Todorovic, Goran N"]
[Result "1-0"]
[ECO "B09"]
[WhiteElo "2335"]
[BlackElo "2305"]
[Annotator "TA"]
[PlyCount "61"]
[EventDate "2022.09.20"]
[EventType "team-tourn"]
[EventCountry "SRB"]
[SourceTitle "playchess.com"]
[Source "ChessBase"]
[SourceQuality "1"]
[TimeControl "40/5400+30:1800+30"]

{[%evp 11,61,33,46,27,39,51,53,38,47,49,68,0,0,0,0,0,0,0,0,13,14,15,0,0,41,47,83,83,144,103,170,169,189,176,420,408,436,432,417,393,510,503,510,483,637,636,645,633,643,641,791,767]} 1. e4 {[%emt 0:10:21]} d6 {[%emt 0:00:19]} 2. d4 {[%emt 0:00:05]} Nf6 {[%emt 0:00:09]} 3. Nc3 {[%emt 0:00:07]} g6 {[%emt 0:00:26]} 4. f4 {[%emt 0:00:31]} Bg7 {[%emt 0:00:33]} 5. Nf3 {[%emt 0:00:24]} c5 {[%emt 0:01:24]} 6. dxc5 {[%emt 0:00:40]} Qa5 {[%emt 0:00:15] [#] Threatens to win with ...Nxe4.} 7. Qd4 {[%emt 0:00:24] B09: Pirc Defence: Austrian Attack.} (7. cxd6 Nxe4 8. dxe7 (8. Bb5+ Nd7 $15) 8... Nc6 $11) 7... Nc6 {[%emt 0:01:31]} 8. Bb5 $1 {[%emt 0:00:09]} O-O {[%emt 0:00:33]} 9. Qa4 {[%emt 0:00:20] White is slightly better.} Qc7 {[%emt 0:00:27]} 10. Be3 {[%emt 0:00:06]} Bd7 {[%emt 0:02:05]} 11. cxd6 {[%emt 0:00:07] White is more active.} (11. O-O-O $14) 11... exd6 $11 {[%emt 0:00:17]} 12. O-O-O {[%emt 0:00:16]} a6 {[%emt 0:01:28]} 13. Bxc6 {[%emt 0:05:21]} Bxc6 {[%emt 0:02:46]} 14. Qb4 {[%emt 0:00:35]} Rfe8 {[%emt 0:09:00][%cal Rf6e4]} (14... Nxe4 {feels hotter.} 15. Nxe4 Rae8 16. Nfg5 Bxe4 17. Nxe4 Qc6) 15. Bb6 {[%emt 0:16:51] [#]} (15. Rxd6 $2 Nxe4 16. Nxe4 Bxe4 $19) 15... Qc8 $146 {[%emt 1:16:47][%cal Rf6e4]} ({Predecessor:} 15... a5 16. Qb3 Qc8 17. Ng5 Rf8 18. Rxd6 h6 19. Nxf7 Rxf7 20. Rhd1 Qf8 21. Rd8 Rxd8 22. Rxd8 {1-0 (37) Howell,D (2597)-Mitchell,M (2195) Hastings 2009}) 16. Nd2 {[%emt 0:02:44]} ({Much worse is} 16. Qxd6 Nxe4 17. Nxe4 Bxe4 $17) 16... a5 {[%emt 0:00:00]} 17. Qxd6 {[%emt 0:03:13]} ({Don't do} 17. Bxa5 Bf8 $14) 17... Nd7 {[%emt 0:00:00] [#] Strongly threatening ...Bxc3.} (17... Ra6 $5 {[%cal Ra6b6]} 18. Qc7 (18. e5 Nd7 $15) 18... Qxc7 19. Bxc7 Ng4 $11) 18. Bf2 {[%emt 0:04:41][%cal Bb6f2,Bf2g1,Bg1d4][%mdl 32]} Nf6 {[%emt 0:00:00][%cal Rf6e4]} 19. Rhe1 {[%emt 0:05:08]} Ng4 {[%emt 0:00:00]} ({Black should try} 19... Rd8 20. Qc5 b5) 20. Bg1 {[%emt 0:01:04]} Bxc3 {[%emt 0:00:00]} (20... Rd8 $16 21. Qc5 b5) 21. bxc3 $18 {[%emt 0:00:02]} Rd8 {[%emt 0:00:00]} 22. Qe7 {[%emt 0:06:31] And now h3 would win.} Re8 $2 {[%emt 0:00:00]} (22... Qe6 {keeps fighting.} 23. Qxe6 fxe6) 23. Qh4 {[%emt 0:03:57]} Qe6 {[%emt 0:00:14][%cal Oe6a2]} 24. Bd4 {[%emt 0:01:33]} Qxa2 {[%emt 0:02:19][%cal Oa8d8]} 25. Qxg4 {[%emt 0:00:06]} Ba4 {[%emt 0:01:02][%csl Ga4][%cal Ra2c2]} 26. Nb3 $1 {[%emt 0:00:58] White is clearly winning.} Bxb3 {[%emt 0:00:09]} 27. cxb3 {[%emt 0:00:02]} Qa1+ {[%emt 0:00:19]} 28. Kc2 {[%emt 0:00:23]} Qa2+ {[%emt 0:00:06]} 29. Kd3 {[%emt 0:00:06]} Qxb3 {[%emt 0:00:09]} 30. Rb1 {[%emt 0:00:11]} Qa4 {[%emt 0:00:28]} 31. Qg5 {[%emt 0:00:24] Weighted Error Value: White=0.08 (flawless) /Black=0.47} 1-0

[Event "1st Serbian League 2022"]
[Site "Vrnjacka Banja"]
[Date "2022.09.28"]
[Round "9.13"]
[White "Demchenko, Anton"]
[Black "Ter-Sahakyan, Samvel"]
[Result "1/2-1/2"]
[ECO "A06"]
[WhiteElo "2645"]
[BlackElo "2630"]
[Annotator "TA"]
[PlyCount "50"]
[EventDate "2022.09.20"]
[EventType "team-tourn"]
[EventCountry "SRB"]
[SourceTitle "playchess.com"]
[Source "ChessBase"]
[SourceQuality "1"]
[TimeControl "40/5400+30:1800+30"]

{[%evp 9,50,31,35,37,39,47,29,-4,6,0,0,-9,0,0,0,0,0,0,0,0,7,4,1,6,2,0,0,0,19,11,15,28,22,8,6,0,0,0,2,0,0,-5,-2]} 1. Nf3 {[%emt 0:00:04]} d5 {[%emt 0:00:05]} 2. b3 {[%emt 0:00:05]} c5 {[%emt 0:03:37]} 3. e3 {[%emt 0:01:20]} g6 {[%emt 0:00:38]} 4. Bb2 {[%emt 0:02:04]} Nf6 {[%emt 0:00:06]} 5. c4 {[%emt 0:08:51]} Bg7 {[%emt 0:00:25][%cal Od5d4]} 6. cxd5 {[%emt 0:00:27] A06: Réti Opening: 1 Nf3 d5.} Qxd5 {[%emt 0:01:05]} 7. Nc3 {[%emt 0:01:57]} Qd8 {[%emt 0:03:03]} 8. d4 {[%emt 0:07:06] White has an edge.} O-O {[%emt 0:07:00]} 9. Bc4 {[%emt 0:03:48]} (9. dxc5 {feels hotter.} Ne4 10. Qxd8 Rxd8 11. Rc1) 9... cxd4 {[%emt 0:04:51]} 10. Nxd4 {[%emt 0:00:50] [#]} Bg4 $146 {[%emt 0:01:45]} ({Predecessor:} 10... Bd7 11. O-O Nc6 12. Qe2 Qa5 13. a3 a6 14. Rfd1 Rad8 15. b4 Qc7 {½-½ (15) Stremavicius,T (2529)-Ostrovskiy,A (2425) Charlotte 2020}) 11. Qc2 {[%emt 0:12:15]} e5 {[%emt 0:19:39]} 12. Nde2 {[%emt 0:01:41]} Nc6 {[%emt 0:03:32]} 13. O-O {[%emt 0:02:21]} Qe7 {[%emt 0:05:33]} 14. Rad1 {[%emt 0:12:27]} Rac8 {[%emt 0:04:54]} 15. h3 {[%emt 0:05:55]} Be6 {[%emt 0:10:34]} 16. Bxe6 {[%emt 0:05:56]} Qxe6 {[%emt 0:00:04]} 17. Ng3 {[%emt 0:01:15]} Rfd8 {[%emt 0:05:07]} 18. Qe2 {[%emt 0:00:38]} Rxd1 {[%emt 0:11:01]} 19. Rxd1 {[%emt 0:00:09]} Rd8 {[%emt 0:00:04]} 20. Rxd8+ {[%emt 0:07:43]} Nxd8 {[%emt 0:00:04]} 21. Kf1 {[%emt 0:00:24] The position is equal.} Qc6 {[%emt 0:04:32]} 22. Qb5 {[%emt 0:01:09]} Qxb5+ {[%emt 0:04:06]} 23. Nxb5 {[%emt 0:00:03]} a6 {[%emt 0:00:06]} 24. Nc7 {[%emt 0:07:12]} Nc6 {[%emt 0:02:08]} 25. Ne2 {[%emt 0:06:16]} Bf8 {[%emt 0:02:36] Weighted Error Value: White=0.03 (flawless) /Black=0.03 (flawless)} 1/2-1/2

[Event "1st Serbian League 2022"]
[Site "Vrnjacka Banja"]
[Date "2022.09.28"]
[Round "9.14"]
[White "Stojanovic, Mihajlo"]
[Black "Atalik, Suat"]
[Result "1/2-1/2"]
[ECO "E46"]
[WhiteElo "2494"]
[BlackElo "2436"]
[Annotator "TA"]
[PlyCount "105"]
[EventDate "2022.09.20"]
[EventType "team-tourn"]
[EventCountry "SRB"]
[SourceTitle "playchess.com"]
[Source "ChessBase"]
[SourceQuality "1"]
[TimeControl "40/5400+30:1800+30"]

{[%evp 12,105,0,0,0,0,0,0,0,0,0,-8,-14,-291,-278,-278,-267,-285,-284,-281,-72,-50,-55,-178,0,0,0,-4,-2,-32,-24,-18,-22,-22,-20,-24,-25,-33,-24,-22,-21,-34,-31,-34,0,0,0,0,16,-79,-8,-81,0,-33,0,0,0,0,0,0,0,0,0,0,7,0,0,0,7,0,0,0,0,0,0,0,0,0,0,0,0,0,0,0,0,0,0,0,0,0,0,0,0,0,0,0]} 1. d4 {[%emt 0:00:17]} Nf6 {[%emt 0:00:22]} 2. c4 {[%emt 0:00:06]} e6 {[%emt 0:00:23]} 3. Nc3 {[%emt 0:00:07]} Bb4 {[%emt 0:00:37]} 4. e3 {[%emt 0:00:06][%cal Be2e3,Be3e4,Be4e5][%mdl 32]} O-O {[%emt 0:00:40]} 5. Nge2 {[%emt 0:00:10]} Re8 {[%emt 0:01:37]} 6. a3 {[%emt 0:00:09]} Bf8 {[%emt 0:00:08]} 7. e4 {[%emt 0:08:19]} d5 {[%emt 0:06:33] E46: Nimzo-Indian: Rubinstein: 4 e3 0-0 5 Ne2 without early Bd3.} 8. e5 {[%emt 0:00:08]} Nfd7 {[%emt 0:03:45]} 9. cxd5 {[%emt 0:01:01]} exd5 {[%emt 0:00:07]} 10. f4 {[%emt 0:00:10]} c5 {[%emt 0:04:03]} 11. dxc5 {[%emt 0:01:30]} Nc6 {[%emt 0:11:26]} 12. Nxd5 {[%emt 0:42:32][%mdl 8192] [#]} (12. Be3 $1 $11) 12... Ndxe5 $146 {[%emt 0:22:19][%mdl 512]} ({Predecessor:} 12... Nxc5 13. Nec3 Bf5 14. Be3 Qh4+ 15. g3 Qh6 16. b4 Ne4 17. Nxe4 Bxe4 18. f5 Bxd5 19. Bxh6 Bxh1 {1-0 (73) Tologontegin,S (2350)-Pulvett Marin,D (2434) Baku 2016}) 13. fxe5 {[%emt 0:01:12]} Qh4+ {[%emt 0:00:11]} 14. Ng3 {[%emt 0:17:21]} Rxe5+ {[%emt 0:09:51]} 15. Be2 {[%emt 0:00:06]} Nd4 $2 {[%emt 0:05:09]} (15... Be6 $1 $19 16. Nc3 Rd8) 16. Ne3 $17 {[%emt 0:01:51]} Be6 {[%emt 0:15:04]} 17. b4 {[%emt 0:03:59]} (17. O-O $1 $15 Bxc5 18. Kh1) 17... Rd8 $2 {[%emt 0:05:07]} ({Black should play} 17... Nxe2 $19 18. Qxe2 Bc4) 18. O-O $11 {[%emt 0:03:45] And now Qe1 would win.} Nb3 {[%emt 0:01:40]} 19. Qc2 {[%emt 0:01:08] Strongly threatening Qb2.} Nxa1 {[%emt 0:02:04]} 20. Qc3 {[%emt 0:00:25]} (20. Qb2 $5 {[%cal Rb2e5]} Qd4 21. Rd1 Qxb2 22. Bxb2 Rxd1+ 23. Nxd1 Rxe2 24. Nxe2 $11) 20... Qd4 {[%emt 0:00:08]} 21. Qxd4 {[%emt 0:00:21]} Rxd4 {[%emt 0:00:05]} 22. Bb2 {[%emt 0:00:16][%csl LRa1,LRd4]} (22. Kf2 {looks sharper.} g6 23. Bb2 Nb3 24. Bxd4 Nxd4 25. Rd1) 22... Nb3 {[%emt 0:00:12]} 23. Bxd4 {[%emt 0:01:37]} (23. Kf2 {with more complications.} g6 24. Bxd4 Nxd4 25. Rd1) 23... Nxd4 {[%emt 0:00:05]} 24. Kf2 {[%emt 0:00:43]} g6 $36 {[%emt 0:02:42][%mdl 2048] Black is more active.} 25. Rd1 {[%emt 0:00:27]} Bh6 {[%emt 0:03:48]} 26. Ng4 {[%emt 0:00:25]} Bxg4 {[%emt 0:00:39]} 27. Bxg4 {[%emt 0:00:03]} Re7 {[%emt 0:01:23]} 28. Nf1 {[%emt 0:04:56]} Nc6 {[%emt 0:00:47]} 29. Bf3 {[%emt 0:05:20]} Ne5 {[%emt 0:00:15]} 30. Bd5 {[%emt 0:00:18]} (30. Ne3 $11) 30... Kf8 {[%emt 0:01:25]} (30... Bc1 $17 31. Ne3 Bxa3) 31. h3 {[%emt 0:07:12] [#]} (31. Ne3 $11 {remains equal.}) 31... f5 {[%emt 0:00:14]} ({Black should try} 31... Bc1 $1 $17 {[%cal Rc1a3]} 32. Ne3 Bxa3) 32. Nh2 {[%emt 0:00:00]} Rd7 {[%emt 0:00:19]} (32... Bc1 $5 {[%cal Rc1a3]}) 33. Ke2 {[%emt 0:00:00] The position is equal.} Ke7 {[%emt 0:00:30]} 34. Nf3 {[%emt 0:00:00]} Nxf3 {[%emt 0:00:07]} 35. Bxf3 {[%emt 0:00:00]} Rxd1 {[%emt 0:00:11]} 36. Kxd1 {[%emt 0:00:00][%mdl 4096] Endgame KB-KB} b6 {[%emt 0:00:07]} 37. cxb6 {[%emt 0:00:21]} axb6 {[%emt 0:00:05]} 38. Kc2 {[%emt 0:01:07]} Be3 {[%emt 0:00:17]} 39. Kd3 {[%emt 0:00:23]} Bg1 {[%emt 0:00:07]} 40. Kc4 {[%emt 0:00:58]} Kf6 {[%emt 0:00:14]} 41. Kd5 {[%emt 0:31:09]} Kg5 {[%emt 0:31:55]} 42. g3 {[%emt 0:00:00]} h5 {[%emt 0:00:00]} 43. h4+ {[%emt 0:00:00]} Kf6 {[%emt 0:00:00] ...Bf2 is the strong threat.} 44. a4 {[%emt 0:00:00]} Bf2 {[%emt 0:00:00]} 45. Kc6 {[%emt 0:00:00]} Be1 {[%emt 0:00:00]} 46. Kb5 {[%emt 0:00:00]} Ke5 {[%emt 0:00:00]} 47. Bc6 {[%emt 0:00:00]} f4 {[%emt 0:00:00]} (47... Bxg3 48. Kxb6 Be1 49. b5 Bxh4 50. Ka7 Bf2+ 51. Ka6 $18) 48. gxf4+ {[%emt 0:00:00]} Kxf4 {[%emt 0:00:00]} 49. Be8 {[%emt 0:00:00]} g5 {[%emt 0:00:00] White must now prevent ...g4.} 50. hxg5 {[%emt 0:00:00]} Kxg5 {[%emt 0:00:00]} 51. Kxb6 {[%emt 0:00:00] aiming for b5.} Bxb4 {[%emt 0:00:00]} 52. a5 {[%emt 0:00:00]} Bxa5+ {[%emt 0:00:00]} 53. Kxa5 {[%emt 0:00:00] Weighted Error Value: White=0.18 (very precise) /Black=0.19 (very precise)} 1/2-1/2

[Event "1st Serbian League 2022"]
[Site "Vrnjacka Banja"]
[Date "2022.09.28"]
[Round "9.15"]
[White "Vucinic, Gojko"]
[Black "Pezelj, Novak"]
[Result "1/2-1/2"]
[ECO "B12"]
[WhiteElo "2380"]
[BlackElo "2496"]
[Annotator "TA"]
[PlyCount "78"]
[EventDate "2022.09.20"]
[EventType "team-tourn"]
[EventCountry "SRB"]
[SourceTitle "playchess.com"]
[Source "ChessBase"]
[SourceQuality "1"]
[TimeControl "40/5400+30:1800+30"]

{[%evp 11,78,14,14,0,8,20,26,-6,0,-10,1,2,0,0,0,8,15,4,2,8,12,12,13,12,16,0,3,-5,0,0,0,-63,-63,-61,-72,-63,-39,-41,-33,-37,-37,-31,-26,-64,-68,-57,-57,-117,-117,-139,-133,-137,0,0,0,0,0,-311,-298,-469,0,0,0,0,0,0,0,0,0]} 1. e4 {[%emt 0:00:01]} c6 {[%emt 0:00:06]} 2. d4 {[%emt 0:00:07]} d5 {[%emt 0:00:05]} 3. e5 {[%emt 0:00:06]} Bf5 {[%emt 0:00:06]} 4. h4 {[%emt 0:00:04]} h5 {[%emt 0:00:05]} 5. Bd3 {[%emt 0:00:11]} Bxd3 {[%emt 0:00:27]} 6. Qxd3 {[%emt 0:00:04]} e6 {[%emt 0:00:09]} 7. Bg5 {[%emt 0:00:08] B12: Caro-Kann: Advance Variation.} Qa5+ {[%emt 0:00:18]} 8. Nd2 {[%emt 0:00:20]} c5 {[%emt 0:01:54]} 9. c4 {[%emt 0:07:50] cxd5 is the strong threat. White has an edge.} cxd4 {[%emt 0:04:55]} 10. Ngf3 {[%emt 0:00:38]} dxc4 {[%emt 0:01:57]} 11. Qxc4 {[%emt 0:00:38] Intending Qc8+ and mate.} Nc6 {[%emt 0:00:54]} 12. O-O {[%emt 0:01:10]} Nge7 {[%emt 0:11:26] [#]} 13. Nb3 $146 {[%emt 0:22:03]} ({Predecessor:} 13. Qb3 Qa6 14. Ne4 Nf5 15. Rfd1 Qb6 16. Qd3 Be7 17. Bxe7 Kxe7 18. Nd6 Nxd6 19. exd6+ Kxd6 {½-½ (27) Vucinic,G (2377)-Charkhalashvili,I (2325) Kavala 2014}) 13... Qd5 {[%emt 0:04:48]} 14. Rac1 {[%emt 0:00:41]} Qxc4 {[%emt 0:11:51]} (14... d3 $5 {[%cal Rd5c4]}) 15. Rxc4 {[%emt 0:00:06]} Nd5 {[%emt 0:00:20]} 16. Nbxd4 {[%emt 0:00:43]} Nxd4 {[%emt 0:00:07]} 17. Nxd4 {[%emt 0:00:03][%cal Bf3d4,Bd4b3,Bb3c5][%mdl 32]} Be7 {[%emt 0:17:52]} 18. Rfc1 {[%emt 0:08:07]} a6 {[%emt 0:06:52]} 19. Nb3 {[%emt 0:05:53]} Kd7 {[%emt 0:03:04][%cal Be8d7,Bd7e7,Be7f8,Bf8g8,Bg8h7,Bh7g6][%mdl 32]} 20. Bxe7 {[%emt 0:10:53]} Kxe7 {[%emt 0:00:17]} 21. Rc7+ {[%emt 0:00:03]} Nxc7 $15 {[%emt 0:00:38]} 22. Rxc7+ {[%emt 0:00:04][%mdl 4096] Endgame KRR-KRN} Kf8 {[%emt 0:00:29][%cal Og7g5]} 23. Nc5 {[%emt 0:00:17]} Kg8 {[%emt 0:12:22]} 24. Rxb7 {[%emt 0:08:40]} a5 {[%emt 0:00:45]} 25. Ne4 {[%emt 0:04:46]} Kh7 {[%emt 0:00:06] aiming for ...Kg6.} 26. Rxf7 {[%emt 0:03:11]} Kg6 {[%emt 0:00:04]} 27. Nd6 {[%emt 0:00:49]} Rhb8 {[%emt 0:00:53]} 28. b3 {[%emt 0:05:15]} a4 {[%emt 0:00:20]} 29. Re7 {[%emt 0:05:28] [#]} (29. Rc7 $15) 29... Rxb3 $1 $17 {[%emt 0:02:58][%mdl 512]} 30. Rxe6+ {[%emt 0:03:05]} (30. axb3 a3) 30... Kh7 {[%emt 0:00:04]} 31. Re7 {[%emt 0:01:58] [#]} (31. axb3 $2 a3 32. Kh2 a2 $19) 31... Ra3 {[%emt 0:00:32]} (31... a3 $1 $17 32. f4 (32. axb3 $2 a2 $19) 32... Rb2) 32. f4 $1 $11 {[%emt 0:00:24][%cal Bf2f4,Bf4f5][%mdl 32]} Rxa2 {[%emt 0:00:04]} 33. f5 $1 {[%emt 0:00:03] And now f6 would win.} Kh8 {[%emt 0:04:24]} (33... Rd2 $5 34. f6 $8 Rxd6 $1 35. exd6 (35. Rxg7+ $2 Kh6 $19) 35... a3 $11) 34. Ne8 $2 {[%emt 0:12:45][%mdl 8192] [#]} (34. f6 $1 $11 gxf6 35. exf6) 34... Kg8 $1 $19 {[%emt 0:11:00]} 35. Nxg7 {[%emt 0:00:06] [#]} (35. f6 {is a better defense.} gxf6 36. exf6) 35... a3 $2 {[%emt 0:00:36]} (35... Ra1+ $1 $19 36. Kh2 Rf1) 36. Nxh5 $11 {[%emt 0:01:01] Threatens to win with Nf6+. The position is equal.} Rxg2+ {[%emt 0:01:36]} 37. Kxg2 {[%emt 0:00:06] Nf6+ would kill now.} a2 {[%emt 0:00:04]} 38. Nf6+ {[%emt 0:01:03]} Kf8 {[%emt 0:00:04]} 39. Rd7 {[%emt 0:00:19] White threatens e6 and mate.} a1=Q {[%emt 0:00:30] Weighted Error Value: White=0.32/Black=0.22 (precise)} 1/2-1/2

[Event "1st Serbian League 2022"]
[Site "Vrnjacka Banja"]
[Date "2022.09.28"]
[Round "9.17"]
[White "Milosevic, Milos"]
[Black "Ratkovic, Miloje"]
[Result "1/2-1/2"]
[ECO "B12"]
[WhiteElo "2379"]
[BlackElo "2498"]
[Annotator "TA"]
[PlyCount "73"]
[EventDate "2022.09.20"]
[EventType "team-tourn"]
[EventCountry "SRB"]
[SourceTitle "playchess.com"]
[Source "ChessBase"]
[SourceQuality "1"]
[TimeControl "40/5400+30:1800+30"]

{[%evp 10,73,13,14,35,22,33,9,37,30,33,31,39,21,29,0,0,0,0,-25,0,-54,-56,-54,-38,-35,-19,-42,-37,-56,-38,-53,0,0,14,14,0,7,0,0,0,0,8,0,6,0,143,95,118,22,14,29,20,22,48,22,8,8,8,0,0,0,0,0,0,0]} 1. e4 {[%emt 0:01:02]} c6 {[%emt 0:00:14]} 2. d4 {[%emt 0:00:07]} d5 {[%emt 0:00:07]} 3. e5 {[%emt 0:00:06]} Bf5 {[%emt 0:00:10]} 4. Nd2 {[%emt 0:00:55]} e6 {[%emt 0:00:43]} 5. Nb3 {[%emt 0:00:10]} Nd7 {[%emt 0:00:08]} 6. Nf3 {[%emt 0:00:07]} Ne7 {[%emt 0:01:11] B12: Caro-Kann: Advance Variation.} 7. Be2 {[%emt 0:00:39]} Bg4 {[%emt 0:05:54][%cal Oc6c5] 7...h6 is setting a new trend.} 8. O-O {[%emt 0:00:24]} Nf5 {[%emt 0:01:10]} 9. h3 {[%emt 0:00:08]} Bxf3 {[%emt 0:00:15]} 10. Bxf3 {[%emt 0:00:02]} g6 {[%emt 0:03:22]} 11. Bd2 {[%emt 0:01:10]} h5 {[%emt 0:00:56]} 12. a4 {[%emt 0:00:18] [#]} f6 $146 {[%emt 0:04:24]} ({Predecessor:} 12... Bh6 13. a5 Bxd2 14. Qxd2 Qe7 15. Rfc1 Rd8 16. Ra4 Kf8 17. Qe2 c5 18. Nxc5 Nxc5 19. dxc5 Qxc5 {½-½ (54) Rublevsky,S (2688)-Deviatkin,A (2570) Irkutsk 2010}) 13. exf6 {[%emt 0:03:23]} Qxf6 {[%emt 0:02:54]} 14. c3 {[%emt 0:01:24]} O-O-O {[%emt 0:17:22]} 15. a5 {[%emt 0:03:45]} (15. Na5 $11) 15... a6 $1 $15 {[%emt 0:00:29]} 16. Be2 {[%emt 0:03:41]} e5 {[%emt 0:02:41]} 17. dxe5 {[%emt 0:02:16]} Nxe5 {[%emt 0:00:39][%cal Bd7e5,Be5f7,Bf7d6][%mdl 32]} 18. Ra4 {[%emt 0:00:56]} Bd6 {[%emt 0:10:49]} 19. Qc1 {[%emt 0:03:05]} Nf7 {[%emt 0:08:32] Prevents Bg5. Threatens to win with ...Qe5.} 20. Bf4 {[%emt 0:00:55] Inhibits Qe5.} g5 {[%emt 0:02:39]} ({Black should try} 20... Rde8 $15 21. Bd1 Re7) 21. Bxd6 $11 {[%emt 0:00:05]} N7xd6 {[%emt 0:01:34]} 22. Nc5 {[%emt 0:08:17]} Rdg8 {[%emt 0:05:52][%cal Og5g4]} 23. Re1 {[%emt 0:05:45]} Re8 {[%emt 0:19:42]} 24. Rb4 {[%emt 0:02:12]} Re7 {[%emt 0:06:54] Strongly threatening ...Rhe8.} 25. Bf1 {[%emt 0:04:43]} Rxe1 {[%emt 0:00:34]} 26. Qxe1 {[%emt 0:00:05][%cal Of1a6] Black should prevent Bxa6!} Re8 {[%emt 0:00:43]} 27. Qd1 {[%emt 0:01:19][%cal Of1a6]} Qf7 {[%emt 0:03:29]} (27... Re7 $11) 28. Rb6 {[%emt 0:03:20]} (28. Be2 $142 $1 {[%cal Re2h5]} Re5 29. Bxh5) 28... Re7 {[%emt 0:00:29] [#]} 29. Bxa6 {[%emt 0:16:14] White is more active.} bxa6 {[%emt 0:00:12]} 30. Rxc6+ {[%emt 0:00:14]} Rc7 {[%emt 0:00:25]} 31. Rxc7+ {[%emt 0:00:16]} Kxc7 {[%emt 0:00:25]} 32. Nxa6+ {[%emt 0:00:12]} Kc8 $1 {[%emt 0:00:57] The position is equal.} 33. Nb4 {[%emt 0:01:46]} d4 $1 {[%emt 0:00:17]} 34. Qf3 {[%emt 0:01:42]} dxc3 {[%emt 0:00:43]} 35. bxc3 {[%emt 0:02:18]} Qc4 {[%emt 0:00:32]} 36. a6 {[%emt 0:10:32] Black must now prevent a7.} Qe4 $1 {[%emt 0:00:03]} 37. Qxe4 {[%emt 0:04:43] Weighted Error Value: White=0.15 (very precise) /Black=0.15 (very precise)} 1/2-1/2

[Event "1st Serbian League 2022"]
[Site "Vrnjacka Banja"]
[Date "2022.09.28"]
[Round "9.18"]
[White "Dimic, Pavle"]
[Black "Vratonjic, Slobo"]
[Result "1/2-1/2"]
[ECO "E68"]
[WhiteElo "2352"]
[BlackElo "2253"]
[Annotator "TA"]
[PlyCount "48"]
[EventDate "2022.09.20"]
[EventType "team-tourn"]
[EventCountry "SRB"]
[SourceTitle "playchess.com"]
[Source "ChessBase"]
[SourceQuality "1"]
[TimeControl "40/5400+30:1800+30"]

{[%evp 21,48,37,106,0,0,-4,-22,-5,2,-38,4,-22,0,-25,-27,-47,-71,-47,-31,-35,-35,-23,9,13,38,0,0,0,44]} 1. d4 {[%emt 0:00:05]} Nf6 {[%emt 0:00:08]} 2. c4 {[%emt 0:00:11]} d6 {[%emt 0:00:12]} 3. Nf3 {[%emt 0:00:54]} Nbd7 {[%emt 0:00:22]} 4. g3 {[%emt 0:00:30]} e5 {[%emt 0:00:30]} 5. Nc3 {[%emt 0:00:04]} c6 {[%emt 0:03:02]} 6. Qc2 {[%emt 0:03:37]} g6 {[%emt 0:06:17]} 7. Bg2 {[%emt 0:00:15]} Bg7 {[%emt 0:00:05]} 8. O-O {[%emt 0:00:15]} O-O {[%emt 0:00:10]} 9. e4 {[%emt 0:07:45]} exd4 {[%emt 0:12:10]} 10. Nxd4 {[%emt 0:00:24]} Re8 {[%emt 0:01:36]} 11. Rd1 {[%emt 0:06:39]} Ne5 {[%emt 0:15:24] [#]} ({Black should try} 11... a5 $14) 12. Nce2 {[%emt 0:07:59] E68: King's Indian: Fianchetto: 6...Nbd7 7 0-0 e5 8 e4.} (12. c5 $1 $16) 12... Qe7 $11 {[%emt 0:11:22] [#]} 13. h3 $146 {[%emt 0:01:25]} ({Predecessor:} 13. Bf4 a6 14. b4 a5 15. bxa5 Rxa5 16. Nb3 Ra6 17. c5 d5 18. Nc3 Bg4 19. exd5 Bxd1 20. Rxd1 Nxd5 21. Nxd5 cxd5 22. Bxd5 {0-1 (46) Haag,E-Spassky,B Havana 1962}) 13... a6 {[%emt 0:01:13]} 14. Bf4 {[%emt 0:38:35]} Bd7 {[%emt 0:11:37]} 15. Nb3 {[%emt 0:10:13]} c5 {[%emt 0:03:01]} 16. Nd2 {[%emt 0:06:54]} b5 {[%emt 0:05:35][%cal Bb7b5,Bb5b4][%mdl 32]} 17. Nc3 {[%emt 0:00:27]} b4 {[%emt 0:00:21]} ({Don't take} 17... bxc4 18. Bxe5 dxe5 19. Nxc4 $14) 18. Nd5 {[%emt 0:00:52]} Nxd5 {[%emt 0:00:08]} 19. cxd5 {[%emt 0:00:23]} Bb5 {[%emt 0:00:37] Threatens to win with ...Nd3.} 20. Bf1 {[%emt 0:03:01] Prevents Nd3.} Qd7 {[%emt 0:06:30] [#] And now ...Bxf1 would win.} 21. Kg2 {[%emt 0:00:27]} Bxf1+ {[%emt 0:02:17]} 22. Rxf1 {[%emt 0:01:52]} Rab8 {[%emt 0:04:18]} 23. b3 {[%emt 0:02:15]} a5 {[%emt 0:05:05]} 24. a4 {[%emt 0:00:25]} Qe7 {[%emt 0:01:50] Weighted Error Value: White=0.22 (precise) /Black=0.15 (very precise)} (24... c4 $5) 1/2-1/2